Cogmind - Beta 11.1 @@@ ROGUE MODE // 2022.06.12 @ 13:14:58 Player: ChromeKnight Result: Self-destructed Performance ------------- Evolutions (1) 500 Regions Visited (3) 600 Robots Destroyed (32) 160 Value Destroyed (624) 624 Prototype IDs (0) 0 Alien Tech Used (0) 0 Bonus (0) 0 TOTAL SCORE: 1884 Bonus ------- None Cogmind --------- Core Integrity 367/400 Matter 300/300 Energy 250/250 System Corruption 0% Temperature Cool (0) Movement Treading (160) Location -9/Materials Parts ------- > --- POWER (1) -------- Ion Engine > --- PROPULSION (2) --- Light Treads Light Treads > --- UTILITY (4) ------ Improved Heat Sink Large Storage Unit Propulsion Shielding Weapon Shielding > --- WEAPON (2) ------- Medium Laser Small Laser > --- INVENTORY (15) --- Light Treads Light Treads Light Treads Light Treads Flight Unit Flight Unit Signal Interpreter Hacking Suite Particle Gun Light Assault Rifle Light Assault Rifle Rocket Launcher Datajack Peak State ------------ > --- POWER ------------ Ion Engine > --- PROPULSION ------- Light Treads Light Treads > --- UTILITY ---------- Improved Heat Sink Large Storage Unit Propulsion Shielding Weapon Shielding > --- WEAPON ----------- Medium Laser Small Laser > --- INVENTORY -------- Light Treads Light Treads Light Treads Light Treads Flight Unit Flight Unit Signal Interpreter Hacking Suite Particle Gun Light Assault Rifle Light Assault Rifle Rocket Launcher Datajack [Rating: 12] Favorites ----------- Power Ion Engine Engine Ion Engine Propulsion Light Treads Treads Light Treads Utility Heat Sink Device Heat Sink Storage Large Storage Unit Protection Weapon Shielding Weapon Small Laser Energy Gun Small Laser Special Melee Weapon Datajack Build | -11 -10 -10 -9 ------- Run | Scr Mat Min Mat Slots Evolved 2 | . . . 2 Power . | . . . . Propulsion . | . . . . Utility 2 | . . . 2 Weapon . | . . . . Parts Attached 22 | 6 9 3 4 Power 5 | 1 3 1 . Engine 5 | 1 3 1 . Core . | . . . . Reactor . | . . . . Propulsion 4 | 2 2 . . Treads 4 | 2 2 . . Leg . | . . . . Wheel . | . . . . Hover . | . . . . Flight . | . . . . Utility 7 | 1 3 1 2 Device 2 | . 1 1 . Storage 3 | 1 2 . . Processor . | . . . . Hackware . | . . . . Protection 2 | . . . 2 Artifact . | . . . . Weapon 6 | 2 1 1 2 Energy Gun 5 | 2 1 . 2 Energy Cannon . | . . . . Ballistic Gun . | . . . . Ballistic Cannon . | . . . . Launcher . | . . . . Special Weapon . | . . . . Impact Weapon . | . . . . Slashing Weapon . | . . . . Piercing Weapon . | . . . . Special Melee Weapon 1 | . . 1 . Unidentified Prototypes . | . . . . Corrupted Parts 1 | . . 1 . System Corruption 1 | . . 1 . Parts Lost 2 | . 2 . . Power 1 | . 1 . . Propulsion . | . . . . Utility . | . . . . Weapon 1 | . 1 . . Highest Loss Streak 1 | . 1 . . To Critical Strikes . | . . . . Average Slot Usage (%) 95 | . 92 100 93 Engine 13 | . 13 14 11 Treads 27 | . 28 28 22 Device 10 | . 7 14 11 Storage 13 | . 14 14 11 Energy Gun 27 | . 28 28 22 Naked Turns . | . . . . Heaviest Build 31 | 11 29 29 31 Greatest Support 40 | 40 40 40 40 Greatest Overweight (x) . | . . . . Average Overweight (x) . | . . . . Largest Inventory Capacity 15 | 8 15 15 15 Average Capacity 12 | 6 9 15 15 Most Carried 15 | 1 15 15 15 Average Carried 10 | . 6 15 13 Final Capacity 15 | 8 15 15 15 Final Carried 15 | 1 15 15 13 Class Distribution -------------------- 100% | Mutant Dominant Class ---------------- Mutant | -10/Materials Mutant | -10/Mines Mutant | -9/Materials Resources | -11 -10 -10 -9 ----------- Run | Scr Mat Min Mat Matter Collected 420 | 205 105 60 50 Remotely . | . . . . Salvage Created 1083 | . 696 337 50 Parts 65 | . 46 19 . Haulers Intercepted 1 | . 1 . . Recyclers Shooed . | . . . . Parts Field Recycled . | . . . . Retrieved Matter . | . . . . Parts Self-Destructed . | . . . . Prevented . | . . . . Kills | -11 -10 -10 -9 ------- Run | Scr Mat Min Mat Combat Hostiles Destroyed 19 | . 13 5 1 Guns 18 | . 12 5 1 Classes Destroyed 8 | . 6 1 1 Worker 5 | . 4 1 . Tunneler 3 | . 1 2 . Hauler 1 | . 1 . . Recycler 2 | . . 2 . Operator 2 | . 2 . . Swarmer 6 | . 3 3 . Grunt 12 | . 10 2 . Sentry 1 | . . . 1 Best Kill Streak 4 | . 3 4 1 Combat Bots Only 3 | . 3 3 1 Max Kills in Single Turn 1 | . 1 1 1 Gunslinging . | . . . . Exploded . | . . . . Melee . | . . . . Uniques/NPCs Destroyed . | . . . . Combat | -11 -10 -10 -9 -------- Run | Scr Mat Min Mat Damage Taken 874 | . 520 213 141 Core 193 | . 96 64 33 Absorbed by Shields . | . . . . Redirected to Shielding 22 | . . . 22 Core Remaining (%) 68 | 100 . 36 . Volleys Fired 87 | . 59 23 5 Largest 2 | . 2 2 2 Hottest 90 | . 90 90 90 Shots Fired 173 | . 117 46 10 Gun 173 | . 117 46 10 Cannon . | . . . . Launcher . | . . . . Special . | . . . . Kinetic . | . . . . Thermal 152 | . 96 46 10 Explosive . | . . . . Electromagnetic 21 | . 21 . . Robot Hit Streak 16 | . 16 11 10 Robot Miss Streak 7 | . 7 2 . Penetration Max . | . . . . Secondary Targets . | . . . . Shots Hit Robots 113 | . 73 31 9 Core Hits 50 | . 33 15 2 Critical Kills . | . . . . Critical Parts Destroyed . | . . . . Critical Strikes 7 | . 6 1 . Burn 7 | . 6 1 . Melee Attacks . | . . . . Impact . | . . . . Slashing . | . . . . Piercing . | . . . . Sneak Attacks . | . . . . Combat Hostiles . | . . . . Follow-up Attacks . | . . . . Damage Inflicted 1372 | . 904 363 105 Guns 1372 | . 904 363 105 Cannons . | . . . . Explosions . | . . . . Melee . | . . . . Ramming . | . . . . Kinetic . | . . . . Thermal 1176 | . 708 363 105 Explosive . | . . . . Electromagnetic 196 | . 196 . . Impact . | . . . . Slashing . | . . . . Piercing . | . . . . Highest Corruption 1 | . . 1 . Average Corruption 1 | . . 1 . Corruption Purged . | . . . . Corruption Blocked . | . . . . Overload Shots . | . . . . Overflow Damage . | . . . . Projectiles . | . . . . Explosions . | . . . . Melee . | . . . . Knockbacks . | . . . . Impact . | . . . . Kinetic . | . . . . Secondary . | . . . . Self-Inflicted Damage . | . . . . Shots . | . . . . Rammed . | . . . . Targets Rammed . | . . . . Kicked . | . . . . Crushed . | . . . . Highest Temperature 259 | . 259 93 2 Average Temperature 68 | . 73 49 2 Received Heat Transfer 408 | . 270 102 36 Effects 1 | . 1 . . Energy Bleed 1 | . 1 . . Siege Activations . | . . . . Robots Corrupted . | . . . . Combat Hostiles . | . . . . Parts Fried . | . . . . Impact Corruptions . | . . . . Robots Melted 1 | . 1 . . Combat Hostiles 1 | . 1 . . Parts Melted 9 | . 4 4 1 Heat Transferred 3606 | . 2268 1053 285 Parts Sabotaged . | . . . . Parts Stolen . | . . . . Parts Stripped . | . . . . Power Chain Reactions . | . . . . Missiles Intercepted . | . . . . Alert | -11 -10 -10 -9 ------- Run | Scr Mat Min Mat Peak Influence 215 | . 215 75 78 Initial 45 | . . 45 27 Average 59 | . 80 37 47 Maximum Alert Level 1 | . 1 . . Low Security (%) 96 | 100 92 100 100 Level 1 3 | . 7 . . Level 2 . | . . . . Level 3 . | . . . . Level 4 . | . . . . Level 5 . | . . . . High Security . | . . . . Max Security . | . . . . Squads Dispatched 4 | . 4 . . Investigation 2 | . 2 . . Extermination . | . . . . Reinforcement 2 | . 2 . . Assault . | . . . . Garrison . | . . . . Intercept . | . . . . Searches Triggered . | . . . . Construction Impeded . | . . . . Haulers Reinforced . | . . . . Active Scanning Responses . | . . . . Cargo Convoy Interrupts . | . . . . Stealth | -11 -10 -10 -9 --------- Run | Scr Mat Min Mat Distress Signals . | . . . . Communications Jammed . | . . . . Distress Signals . | . . . . Times Spotted 23 | . 17 5 1 Peak Tracking Total 3 | . 3 3 1 Tactical Retreats 1 | . 1 . . Traps | -11 -10 -10 -9 ------- Run | Scr Mat Min Mat Traps Triggered 2 | . 2 . . Indirectly . | . . . . Trap Hack Attempts . | . . . . Triggered . | . . . . Disarmed . | . . . . Reprogrammed . | . . . . Reused . | . . . . Traps Extracted . | . . . . Installed 5 | . . 5 . Triggered . | . . . . Machines | -11 -10 -10 -9 ---------- Run | Scr Mat Min Mat Machines Disabled . | . . . . Max in Single Turn . | . . . . Machines Sabotaged . | . . . . Garrisons Compromised . | . . . . Overloaded Fab Kills . | . . . . Hacking | -11 -10 -10 -9 --------- Run | Scr Mat Min Mat Machines Accessed 3 | . 2 . 1 Terminals 3 | . 2 . 1 Fabricators . | . . . . Repair Stations . | . . . . Recycling Units . | . . . . Scanalyzers . | . . . . Garrison Access . | . . . . Total Hacks 9 | . 5 . 4 Successful 6 | . 3 . 3 Failed 3 | . 2 . 1 Catastrophic . | . . . . Database Lockouts . | . . . . Manual 7 | . 5 . 2 Terminals 9 | . 5 . 4 Fabricators . | . . . . Repair Stations . | . . . . Recycling Units . | . . . . Scanalyzers . | . . . . Garrison Access . | . . . . Terminal Hacks 1 | . . . 1 Branch Access Points 1 | . . . 1 Fabricator Hacks . | . . . . Repair Station Hacks . | . . . . Recycling Unit Hacks . | . . . . Scanalyzer . | . . . . Garrison Access Hacks . | . . . . Unauthorized Hacks 5 | . 3 . 2 Terminals 5 | . 3 . 2 Botnet 3 | . 2 . 1 Operators 2 | . 1 . 1 Fabricators . | . . . . Repair Stations . | . . . . Recycling Units . | . . . . Scanalyzers . | . . . . Garrison Access . | . . . . Data Cores Recovered . | . . . . Used . | . . . . Hacking Detections 3 | . 2 . 1 Full Trace Events . | . . . . Feedback Events . | . . . . Feedback Blocked . | . . . . Robot Schematics Acquired . | . . . . Robots Built . | . . . . Authchips . | . . . . Time . | . . . . Total Robot Build Rating . | . . . . Part Schematics Acquired . | . . . . Parts Built . | . . . . Authchips . | . . . . Time . | . . . . Total Part Build Rating . | . . . . Parts Repaired . | . . . . Time . | . . . . Parts Recycled . | . . . . Recycled Matter . | . . . . Retrieved Matter . | . . . . Retrieved Components . | . . . . Parts Scanalyzed . | . . . . Part Schematics Acquired . | . . . . Parts Damaged . | . . . . Bothacking | -11 -10 -10 -9 ------------ Run | Scr Mat Min Mat Used RIF Installer . | . . . . Robots Hacked . | . . . . Non-combat . | . . . . Combat . | . . . . Robot Hacks Applied . | . . . . Relay Couplers Released . | . . . . Fabnet Peak Effective % . | . . . . Robots Rewired . | . . . . Allies Hacked . | . . . . Hacks Repelled . | . . . . Allies | -11 -10 -10 -9 -------- Run | Scr Mat Min Mat Total Allies . | . . . . Largest Group . | . . . . Highest-Rated Group . | . . . . Highest-Rated Ally . | . . . . Total Orders . | . . . . Ally Attacks . | . . . . Total Damage . | . . . . Kills . | . . . . Allies Corrupted . | . . . . Allies Melted . | . . . . Intel | -11 -10 -10 -9 ------- Run | Scr Mat Min Mat Robot Analysis Total . | . . . . Derelict Logs Recovered 2 | . . 2 . Drone Launches . | . . . . Drone Recoveries . | . . . . Exploration | -11 -10 -10 -9 ------------- Run | Scr Mat Min Mat Turns Passed 2507 | 58 1316 1059 74 Spaces Moved 1159 | 33 484 611 31 Core 3 | 3 . . . Treads 1156 | 30 484 611 31 Legs . | . . . . Wheels . | . . . . Hover . | . . . . Flight . | . . . . Fastest Speed 50 | 50 160 160 160 Average Speed 159 | 150 160 160 160 Slowest Speed 160 | 160 160 160 160 Overloaded Moves . | . . . . Propulsion Burnouts . | . . . . Robots Hopped . | . . . . Cave-ins Triggered . | . . . . Exploration Rate (%) 46 | 3 79 97 5 Regions Visited 3 Branch Regions 1 Pre-discovered Areas 2 | . . 2 . Known Exits Taken . | . . . . Unknown Exits Taken 3 | 1 1 1 . Scrap Searched 2 | . . 2 . Spaces Dug . | . . . . Terrain Destroyed . | . . . . Melee . | . . . . Projectile . | . . . . AOE . | . . . . Terrain Rammed . | . . . . Walls Destroyed . | . . . . Machines Disabled . | . . . . Actions | -11 -10 -10 -9 --------- Run | Scr Mat Min Mat Total 1645 | 39 912 649 45 Wait 339 | . 332 4 3 Move 1156 | 32 483 610 31 Hop . | . . . . Pick Up 23 | 1 20 1 1 Fast Attach 8 | 6 2 . . Attach 5 | . 2 . 3 Detach . | . . . . Swap 9 | . 5 3 1 Drop 13 | . 9 3 1 Fire 87 | . 59 23 5 Melee . | . . . . Ram . | . . . . Kick . | . . . . Crush . | . . . . Escape Stasis . | . . . . Rewire . | . . . . Trap 5 | . . 5 . Miscellaneous . | . . . . Route ------- -11/Scrapyard -10/Materials (discovered 4 exits: *Mat x3 / [*Min]) -10/Mines (discovered 2 exits: *Mat x2) -9/Materials (discovered 1 exit: Min) History --------- Turn | Location | Event 28 | -11/Scrapyard | Discovered new exit (range 16) 59 | -11/Scrapyard | Entered Materials 307 | -10/Materials | Build established: Mutant 744 | -10/Materials | Discovered new exit (range 8) 825 | -10/Materials | Discovered new exit (range 16) 1197 | -10/Materials | Discovered new exit (range 16) 1351 | -10/Materials | Discovered new exit (range 16) 1375 | -10/Materials | Entered Mines 1567 | -10/Mines | Learned location of Zion (-7) 1622 | -10/Mines | Found a hidden stash of uninstalled traps 1777 | -10/Mines | Discovered new exit (range 16) 1887 | -10/Mines | Learned location of Storage (-7) 2003 | -10/Mines | Discovered new exit (range 5) 2096 | -10/Mines | Deemed a non-threat by the Exiles lab entrance 2256 | -10/Mines | Core integrity fell below 50% 2434 | -10/Mines | Entered Materials 2434 | -9/Materials | Evolved 2 slots: Utility x2 2508 | -9/Materials | Identified exit to Mines 2508 | -9/Materials | Self-destructed Last Messages --------------- 02449_ Acquired Rocket Launcher. 02483_ Lgt. Treads melted. 02483_ Y-45 Defender destroyed. 02489_ Acquired 50 matter. 02505_ Connecting with Terminal... 02505_ Current location identified: Materials >>Trojan(Botnet) Trojan loaded successfully. Testing... Terminal linked with 0 systems. Awaiting botnet instructions. >>Trojan(Operators) Trojan loaded successfully. Testing... Operator tracking enabled and active. 02508_ Connecting with Terminal... >>Access(Branch) Found 1 branch access point: (49,50) Mines Map updated. Map ----- +----------------------------------------------------+ | ?????????????????????????????????????????????????? | | ?????????????????????????????????????????????????? | | ?????????????????????????????????????????????????? | | ?????????????????????????????????????????????????? | | ?????????????????????????????????????????????????? | | ?????????????????????????????????????????????????? | | ?????????????????????????????????????????????????? | | ?????????????????????????????????????????????????? | | ?????????????????????????????????????????????????? | | ?????????????????????????????????????????????????? | | ?????????????????????????????????????????????????? | | ?????????????????????????????????????????????????? | | ?????????????????????????????????????????????????? | | ?????????????????????????????????????????????????? | | ????????????????????????################?????????? | | ????????????##### ??????# #?????????? | | ????????? ### #?????????? | | ????????? #?????????? | | ????????? ####+########+######???????? | | ????????????##+## ??# # #???????? | | ????????????????#?????# """ #[ #???????? | | ??????????????????????# """ # #???????? | | ??????????????????????# """ # #???????? | | ??????????????????????# # """ """ #???????? | | ??????????????????????# " # """ """ #???????? | | ??????????????????????+ T@ # """ """ #???????? | | ??????????????????????# " == # #???????? | | ??????????????????????# == ##########????????? | | ??????????????????????##########?????????????????? | | ?????????????????????????????????????????????????? | | | | | | | | | | | | | | | | | | | | | | | | | | | | | | | | | | | | | | | | | +----------------------------------------------------+ Best States ------------- Heat Dissipation 42 Energy Generation 10 Energy Capacity 250 Matter Stores 300 Matter Capacity 300 Sight Range 16 Terrain Scan Density 10 Propulsion Shielding 33 Weapon Shielding 33 Evasion (%) 40 Recoil Reduction 2 Item Schematics ----------------- None Robot Schematics ------------------ None Fabricated ------------ Nothing Alien Tech Used ----------------- None Achievements -------------- None Challenges ------------ None Game ------ Seed CoilStructuralDevice Manual? 0 Play Time 00:08:52 Cumulative 324.1 hours Start 2022.06.12 @ 13:06:15 End 2022.06.12 @ 13:14:58 Sessions 1 Manual Loads 0 Difficulty Rogue Special Mode None Game No. 572 Rogue 417 Adventurer 148 Explorer 7 Win Type - Total 11 Types 9/0/1/1/0/0/0/0/0 Lore% 74 Gallery% 87 Achievement% 67 Wizard Run 0 Options --------- ASCII 0 Keyboard 0 Movement Numpad Keybinds 0 Fullscreen 1 Font 18/SmallcapsGlow Map View 76x50 Tactical HUD 1 Map Filters NONE Filters NONE Steam 1 RUN: 90ebb51d-c168-4f0b-aac3-e3c1b8eb4203